fUSD/lending_fUSD_20241011
["ID","MTS","AMOUNT","RATE_DAILY","PERIOD"]
[340128525,1728655853033,-12381.90329816,0.00011422,2]
[340128526,1728655982125,150.0,0.0001,2]
[340128527,1728655982149,150.0,0.0001,2]
[340128528,1728655982173,150.0,0.0001,2]
[340128529,1728655982196,100.0,0.0001,2]
[340128531,1728656729527,150.0,0.000101,2]
[340128532,1728656729548,150.0,0.000101,2]
[340128533,1728656729569,150.0,0.000101,2]
[340128534,1728656729593,150.0,0.000101,2]
[340128535,1728656729615,150.0,0.000101,2]
[340128536,1728656729636,213.11964229,0.000101,2]
[340128537,1728656729668,34380.19431445,0.000101,2]
[340128538,1728656754790,150.0,6.94e-05,2]
[340128539,1728656754813,150.0,6.94e-05,2]
[340128540,1728656754835,144.73917368,6.94e-05,2]
[340128541,1728656838244,205.0,9.8e-05,2]
[340128542,1728656842429,246.29814488,0.000101,2]
[340128543,1728656878203,1563.92452854,0.0001,2]
[340128544,1728656916445,212.104134,0.0001,2]
[340128555,1728656997265,-1186.6985,0.000109,2]
[340128556,1728656997289,-402.64497673,0.000109,2]
[340128557,1728656997313,-1464.94343826,0.000109,2]
[340128558,1728656997336,-389.07983752,0.000109,2]
[340128559,1728656997359,-151.25,0.00010959,2]
[340128560,1728656997381,-500.0,0.00010973,2]
[340128561,1728656997404,-1425.22087068,0.00010997,2]
[340128562,1728656997426,-6801.62118548,0.00010999,2]
[340128563,1728656997449,-238.66875339,0.00010999,2]
[340128564,1728656997472,-319.83,0.00011,2]
[340128565,1728656997498,-15720.04243794,0.00011,2]
[340128581,1728657032189,-199.15185176,0.0001099,2]
[340128582,1728657032198,-5233.58646451,0.00011,2]
[340128583,1728657032209,-6129.8185593,0.00011,2]
[340128584,1728657032268,-4873.99515114,0.00011,2]
[340128614,1728657038564,-23268.66793434,0.00011,2]
[340128615,1728657038765,-3243.407536,0.00011,2]
[340128616,1728657038779,-4032.83102732,0.00011,2]
[340128647,1728657043460,-557657.99999959,0.00011,2]
[340128648,1728657043538,-25990.29998855,0.00011,2]
[340128652,1728657046180,-3044.20043872,0.000109,2]
[340128654,1728657046189,-4489.598755,0.00011,2]
[340128656,1728657046200,-21378.29164514,0.00011,2]
[340128657,1728657046396,-500.0,0.00011,2]
[340128658,1728657046408,-6632.92788754,0.00011,2]
[340128659,1728657046475,-3509.6671597,0.00011,2]
[340128660,1728657046487,-487.93761341,0.00011,2]
[340128663,1728657138846,150.0,9.767e-05,2]
[340128664,1728657138868,150.0,9.767e-05,2]
[340128665,1728657138893,150.0,9.767e-05,2]
[340128666,1728657138915,80.98,9.767e-05,2]
[340128667,1728657227863,-1106.4912755,0.000105,2]
[340128668,1728657659121,504.43,9.293e-05,2]
[340128670,1728657827141,550.0,0.0001,2]
[340128673,1728658232353,-150.0,0.00010499,2]
[340128674,1728658232362,-351.95791481,0.000105,2]
[340128675,1728658232544,-518.34734357,0.000105,2]
[340128676,1728658232577,-3788.0965427,0.000105,2]
[340128677,1728658232609,-848.80884513,0.000105,2]
[340128679,1728658238740,-53921.29807829,0.000105,2]
[340128680,1728658238750,-23900.0,0.00010565,2]
[340128681,1728658238761,-1113.4325,0.000108,2]
[340128682,1728658238770,-789.8541,0.000109,2]
[340128683,1728658238779,-962.6503,0.000109,2]
[340128684,1728658238790,-4856.0347,0.000109,2]
[340128685,1728658238799,-1318.44909447,0.000109,2]
[340128686,1728658238809,-2059.1038,0.000109,2]
[340128687,1728658238818,-239.99603434,0.000109,2]
[340128688,1728658238827,-6497.96227794,0.000109,2]
[340128689,1728658238836,-652.84394074,0.000109,2]
[340128690,1728658238846,-680.13428117,0.000109,2]
[340128691,1728658238857,-157.73,0.00010959,2]
[340128692,1728658238867,-250.0,0.00010959,2]
[340128693,1728658238877,-503.97595646,0.00010973,2]
[340128694,1728658238888,-500.0,0.00010973,2]
[340128695,1728658238899,-250.0,0.00010975,2]
[340128696,1728658238916,-207.42636909,0.0001099,2]
[340128697,1728658238925,-248.02,0.00010999,2]
[340128698,1728658238934,-231.15527415,0.00010999,2]
[340128699,1728658238943,-501.17066642,0.00010999,2]
[340128700,1728658238952,-500.0,0.00010999,2]
[340128701,1728658238961,-538.43756715,0.00010999,2]
[340128702,1728658238971,-500.0,0.00010999,2]
[340128703,1728658238980,-500.0,0.00010999,2]
[340128705,1728658238990,-500.0,0.00010999,2]
[340128706,1728658238999,-500.0,0.00010999,2]
[340128708,1728658239008,-500.0,0.00010999,2]
[340128710,1728658239017,-567.71,0.00010999,2]
[340128712,1728658239027,-499.99,0.00010999,2]
[340128714,1728658239036,-895438.7581916,0.00011,2]
[340128716,1728658239048,-16932.32639603,0.00011,2]
[340128718,1728658239059,-2546.6,0.00011,2]
[340128720,1728658239070,-326.67049989,0.00011,2]
[340128727,1728658239136,-7626.19378738,0.00011,2]
[340128728,1728658239147,-878.69942469,0.00011,2]
[340128729,1728658239166,-1363.02997939,0.00011,2]
[340128841,1728658240746,-271.12891889,0.00011,2]
[340128842,1728658240759,-387.8138711,0.00011,2]
[340128843,1728658240771,-1500.31893298,0.00011,2]
[340128844,1728658240781,-725.90348696,0.00011,2]
[340128845,1728658240792,-360.19500006,0.00011,2]
[340128856,1728658243503,-689.2999998,0.00011,2]
[340128857,1728658243515,-12479.99999997,0.00011,2]
[340128858,1728658243619,-40909.22753173,0.00011,2]
[340128859,1728658243630,-5250.00000002,0.00011,2]
[340128860,1728658243642,-4608.06807084,0.00011,2]
[340128861,1728658243731,-1343.96201339,0.00011,2]
[340128863,1728658246419,-1242.40000003,0.00011,2]
[340128864,1728658246533,-6192.04968,0.00011,2]
[340128865,1728658246560,-431.83139995,0.00011,2]
[340128866,1728658246589,-1940.73829803,0.00011,2]
[340128867,1728658246617,-290.38875,0.00011,2]
[340128868,1728658246644,-6208.34880148,0.00011,2]
[340128869,1728658246656,-340.3295,0.00011,2]
[340128870,1728658246838,-304.02707426,0.00011,2]
[340128871,1728658246849,-25449.9999,0.00011,2]
[340128872,1728658246860,-8400.0,0.00011,2]
[340129243,1728658317529,150.0,0.000123,3]
[340129244,1728658334098,178.91946192,0.0002152,90]
[340129247,1728658485134,479.2,9.579e-05,2]
[340129252,1728659144452,150.0,9.888e-05,2]
[340129254,1728659224941,150.0,9.339e-05,2]
[340129255,1728659224964,150.0,9.339e-05,2]
[340129256,1728659224986,150.0,9.339e-05,2]
[340129257,1728659225007,5.24,9.339e-05,2]
[340129313,1728659431686,-150.0,0.00010899,2]
[340129314,1728659431696,-161.63816998,0.000109,2]
[340129315,1728659431705,-46.39289854,0.000109,2]
[340129316,1728659431752,-279.69657276,0.000109,2]
[340129317,1728659431764,-1075.43,0.000109,2]
[340129318,1728659431779,-507.73283308,0.000109,2]
[340129319,1728659431806,-344.19142609,0.000109,2]
[340129320,1728659431819,-645.2515,0.000109,2]
[340129321,1728659431867,-3611.46096953,0.000109,2]
[340129322,1728659431877,-384.833,0.000109,2]
[340129323,1728659431886,-250.75499347,0.000109,2]
[340129324,1728659431898,-4474.82,0.000109,2]
[340129325,1728659431914,-449.55125705,0.000109,2]
[340129326,1728659431926,-255.97559429,0.000109,2]
[340129327,1728659431938,-741.4673214,0.000109,2]
[340129330,1728659432180,-262.43609748,0.000109,2]
[340129331,1728659432192,-2314.4383043,0.000109,2]
[340129332,1728659432203,-552.46305185,0.000109,2]
[340129335,1728659437747,-4336.83608016,0.000109,2]
[340129336,1728659437756,-486.3573,0.000109,2]
[340129337,1728659437765,-151.30053413,0.000109,2]
[340129338,1728659437779,-173.389809,0.000109,2]
[340129339,1728659437788,-261.6878,0.000109,2]
[340129340,1728659437797,-1000.0,0.000109,2]
[340129341,1728659437806,-1278.5102,0.000109,2]
[340129342,1728659437815,-1186.60418496,0.000109,2]
[340129343,1728659437826,-6421.3458,0.000109,2]
[340129344,1728659437835,-2500.0,0.000109,2]
[340129345,1728659437845,-435.22929382,0.000109,2]
[340129346,1728659437854,-2869.31807737,0.000109,2]
[340129347,1728659437863,-159.99735624,0.000109,2]
[340129348,1728659437872,-4331.97485196,0.000109,2]
[340129349,1728659437882,-164.78,0.00010959,2]
[340129350,1728659437891,-151.25,0.00010959,2]
[340129351,1728659437900,-854.37,0.00010959,2]
[340129352,1728659437911,-402.76862788,0.00010973,2]
[340129353,1728659437920,-2000.0,0.00010983,2]
[340129354,1728659437929,-161.8086919,0.00010999,2]
[340129355,1728659437938,-393.15972968,0.00010999,2]
[340129356,1728659437947,-11557.50585031,0.00011,2]
[340129357,1728659437959,-496.742,0.00011,2]
[340129358,1728659437987,-1743.85,0.000109,2]
[340129359,1728659437996,-87668.38001679,0.00011,2]
[340129360,1728659438007,-264.399938,0.00011,2]
[340129361,1728659438018,-1373.83926939,0.00011,2]
[340129362,1728659438033,-15250.0,0.00011,2]
[340129363,1728659438043,-5340.57347173,0.00011,2]
[340129364,1728659438054,-3994.42510275,0.00011,2]
[340129365,1728659438066,-512.70577307,0.00011,2]
[340129366,1728659438077,-13438.7053741,0.00011,2]
[340129367,1728659438088,-31925.2012,0.00011,2]
[340129368,1728659438099,-13565.0,0.00011,2]
[340129369,1728659438110,-24528.90035,0.00011,2]
[340129370,1728659438121,-54170.55,0.00011,2]
[340129371,1728659438132,-9553.154996,0.00011,2]
[340129372,1728659438147,-9084.2900005,0.00011,2]
[340129373,1728659438160,-13724.235,0.00011,2]
[340129374,1728659438172,-1384.75,0.00011,2]
[340129375,1728659438183,-5915.5,0.00011,2]
[340129379,1728659439715,-849.86904811,0.00011,2]
[340129380,1728659439726,-361.19499987,0.00011,2]
[340129381,1728659439737,-2292.942009,0.00011,2]
[340129382,1728659439854,-567.95278458,0.00011,2]
[340129385,1728659441614,155.03679,9.789e-05,2]
[340129396,1728659442645,-12889.68880496,0.00011,2]
[340129399,1728659442840,-1.01159649,0.00011,2]
[340129400,1728659442851,-2620.0,0.00011,2]
[340129401,1728659442949,-12648.50162918,0.00011,2]
[340129402,1728659442961,-644.9484743,0.00011,2]
[340129403,1728659442972,-6106.2684973,0.00011,2]
[340129412,1728659445661,-1592.03474949,0.00011,2]
[340129413,1728659445704,-1234.0,0.00011,2]
[340129414,1728659445840,-321236.36058776,0.00011,2]
[340129417,1728659673237,550.0,0.0001,2]
[340129420,1728659745479,432.47,8.716e-05,2]
[340129424,1728659852640,-500.0,0.00010432,2]
[340129430,1728660227021,-200.0,0.00010407,2]
[340129431,1728660261702,-530.12,0.00010377,2]
[340129432,1728660348710,-250.0,0.00010415,2]
[340129433,1728660354894,150.0,6.94e-05,2]
[340129434,1728660354915,147.87044918,6.94e-05,2]
[340129435,1728660357560,2.12955082,9.888e-05,2]
[340129436,1728660357580,147.87044918,9.888e-05,2]
[340129437,1728660454368,-606.07724393,0.00010477,2]
[340129438,1728660509474,250.0,0.00010186,2]
[340129460,1728660631840,-9742.22354473,0.00010477,2]
[340129461,1728660631855,-849.97896667,0.00010477,2]
[340129462,1728660631867,-360.246502,0.00010477,2]
[340129463,1728660631888,-860.95455213,0.00010477,2]
[340129464,1728660631900,-2651.08139145,0.00010477,2]
[340129465,1728660631911,-2537.25976177,0.00010477,2]
[340129466,1728660631923,-5055.3656058,0.00010477,2]
[340129467,1728660631934,-1236.81243152,0.00010477,2]
[340129468,1728660631944,-1000.0,0.00010559,2]
[340129469,1728660631954,-150.0,0.00010606,2]
[340129470,1728660631963,-150.0,0.00010799,2]
[340129471,1728660631972,-262.2927,0.000108,2]
[340129472,1728660631982,-941.6857,0.000108,2]
[340129473,1728660631991,-7583.2159,0.000108,2]
[340129474,1728660632001,-1543.0613,0.000108,2]
[340129475,1728660632011,-1412.5976,0.000108,2]
[340129476,1728660632020,-2500.0,0.000108,2]
[340129477,1728660632030,-2802.0804204,0.000108,2]
[340129478,1728660632039,-181.297,0.00010899,2]
[340129479,1728660632048,-313.733,0.00010899,2]
[340129480,1728660632252,-5838.45629141,0.00010899,2]
[340129481,1728660632262,-1000.0,0.000109,2]
[340129483,1728660632272,-161.63816997,0.000109,2]
[340129485,1728660632282,-768.2328,0.000109,2]
[340129487,1728660632291,-14361.95673612,0.000109,2]
[340129491,1728660632311,-1107.8240724,0.000109,2]
[340129493,1728660632322,-4312.59456803,0.000109,2]
[340129495,1728660632333,-328.01300429,0.000109,2]
[340129497,1728660632345,-4670.58140367,0.000109,2]
[340129499,1728660632356,-5409.42459508,0.000109,2]
[340129501,1728660632369,-495.72833055,0.000109,2]
[340129502,1728660632380,-1452.9659822,0.000109,2]
[340129503,1728660632391,-793.44668693,0.000109,2]
[340129504,1728660632404,-309.856558,0.000109,2]
[340129505,1728660632416,-6225.7093259,0.000109,2]
[340129506,1728660632436,-328.4348001,0.000109,2]
[340129507,1728660632447,-1310.3655538,0.000109,2]
[340129508,1728660632458,-6178.9825058,0.000109,2]
[340129509,1728660632470,-8606.23695535,0.000109,2]
[340129510,1728660632488,-549.255392,0.000109,2]
[340129511,1728660632499,-1160.73125044,0.000109,2]
[340129512,1728660632510,-25005.64888238,0.000109,2]
[340129513,1728660632525,-418.71382403,0.000109,2]
[340129514,1728660632537,-2080.63,0.000109,2]
[340129515,1728660632549,-19063.22117293,0.000109,2]
[340129516,1728660632564,-467.5342,0.000109,2]
[340129517,1728660632573,-7242.0378,0.000109,2]
[340129518,1728660632583,-500.0,0.000109,2]
[340129519,1728660632592,-173.90135049,0.000109,2]
[340129520,1728660632603,-100000.0,0.000109,2]
[340129521,1728660632620,-42677.85471562,0.000109,2]
[340129528,1728660638006,-3219.35090957,0.000108,2]
[340129529,1728660638017,-10903.20915914,0.000108,2]
[340129530,1728660638028,-360.53268373,0.000108,2]
[340129531,1728660638039,-572.13343351,0.000108,2]
[340129532,1728660638050,-2144.37888385,0.000108,2]
[340129533,1728660638061,-1000.0,0.000108,2]
[340129534,1728660638144,-10281.3313302,0.000108,2]
[340129535,1728660638157,-202322.14528438,0.000109,2]
[340129536,1728660638167,-7500.0,0.000109,2]
[340129537,1728660638177,-173.65881275,0.000109,2]
[340129538,1728660638187,-595.11749602,0.000109,2]
[340129539,1728660638196,-595.11749602,0.000109,2]
[340129540,1728660638206,-13835.94656914,0.000109,2]
[340129541,1728660638215,-244.83174576,0.000109,2]
[340129542,1728660638225,-1176.65125936,0.000109,2]
[340129543,1728660638235,-420.14475632,0.000109,2]
[340129544,1728660638244,-159.99735622,0.000109,2]
[340129545,1728660638253,-244.83174576,0.00010907,2]
[340129546,1728660638263,-420.14475631,0.00010907,2]
[340129547,1728660638272,-499.99,0.00010914,2]
[340129548,1728660638282,-244.83174576,0.00010914,2]
[340129549,1728660638291,-420.14475631,0.00010914,2]
[340129550,1728660638301,-159.99735622,0.00010914,2]
[340129551,1728660638311,-5838.45629139,0.00010922,2]
[340129552,1728660638321,-823.14,0.00010922,2]
[340129553,1728660638330,-595.11749602,0.00010928,2]
[340129554,1728660638340,-152.99,0.00010959,2]
[340129555,1728660638350,-161.91,0.00010959,2]
[340129556,1728660638360,-150.0,0.00010959,2]
[340129557,1728660638370,-2000.0,0.00010959,2]
[340129558,1728660638380,-250.0,0.00010959,2]
[340129559,1728660638391,-1546.26,0.00010959,2]
[340129560,1728660638401,-176.58,0.00010959,2]
[340129561,1728660638411,-882.92,0.00010959,2]
[340129562,1728660638421,-595.11749602,0.00010971,2]
[340129563,1728660638431,-1233.84656008,0.00010999,2]
[340129564,1728660638441,-4116214.63468599,0.00011,2]
[340129565,1728660638451,-26299.35536653,0.00011,2]
[340129566,1728660638460,-287.84,0.00011,2]
[340129568,1728660638470,-300.00000007,0.00011,2]
[340129570,1728660638480,-1784598.65401345,0.00011,2]
[340129572,1728660638491,-839877.77233526,0.00011,2]
[340129574,1728660638504,-300.82175028,0.00011,2]
[340129576,1728660638515,-581.0996,0.00011,2]
[340129579,1728660638527,-616.0766574,0.00011,2]
[340129581,1728660638538,-600.5,0.00011,2]
[340129583,1728660638550,-3013.58673412,0.00011,2]
[340129586,1728660638570,-291.81590894,0.00011,2]
[340129599,1728660638698,-628.01,0.00011,2]
[340129600,1728660638710,-477.85701832,0.00011,2]
[340129601,1728660638722,-370.6152,0.00011,2]
[340129606,1728660639906,-8032.94655151,0.00011,2]
[340129607,1728660639918,-856.93060455,0.00011,2]
[340129608,1728660639929,-361.61999993,0.00011,2]
[340129609,1728660639951,-1891.89,0.00011,2]
[340129610,1728660640096,-1012.63076299,0.00011,2]
[340129611,1728660640108,-2588.90000003,0.00011,2]
[340129612,1728660640119,-842.40632519,0.00011,2]
[340129613,1728660640130,-1344.25561625,0.00011,2]
[340129614,1728660640334,-734.3193894,0.00011,2]
[340129628,1728660643116,-6988.1238,0.00010377,2]
[340129629,1728660643126,-55013.65065859,0.000108,2]
[340129630,1728660643138,-2138.24124141,0.000108,2]
[340129631,1728660643147,-1383.93686026,0.00011,2]
[340129632,1728660643158,-363.3058,0.00011,2]
[340129633,1728660643169,-3230.70846362,0.00011,2]
[340129634,1728660643181,-278.84646037,0.00011,2]
[340129635,1728660643344,-654.3670804,0.00011,2]
[340129636,1728660643355,-1260.0,0.00011,2]
[340129637,1728660643367,-32487.10632065,0.00011,2]
[340129642,1728660645941,-1282.90465957,0.00011,2]
[340129643,1728660645953,-260.95564108,0.00011,2]
[340129644,1728660645964,-1554538.44145691,0.00011,2]
[340129645,1728660645987,-287.9192,0.00011,2]
[340129646,1728660646111,-9002.72690644,0.00011,2]
[340129649,1728660685261,7726.0,0.00012,5]
[340129650,1728660705550,200.0,0.000105,3]
[340129651,1728660707660,500.0,0.000106,3]
[340129652,1728660709757,800.0,0.000107,3]
[340129653,1728660711910,1100.0,0.000108,3]
[340129654,1728660714010,1400.0,0.000109,3]
[340129655,1728660716104,200.0,0.000119,4]
[340129657,1728661212607,150.0,8.57e-05,2]
[340129658,1728661212629,150.0,8.57e-05,2]
[340129659,1728661212651,139.04,8.57e-05,2]
[340129660,1728661212682,11516.0,0.000108,5]
[340129661,1728661213409,11516.0,0.000106,3]
[340129662,1728661224647,1205.66146195,0.00010999,3]
[340129663,1728661224695,1205.66146195,0.00010999,3]
[340129664,1728661228165,1400.0,0.000105,3]
[340129665,1728661230348,2900.0,0.000106,3]
[340129666,1728661232471,4300.0,0.000107,3]
[340129667,1728661234592,5800.0,0.000108,3]
[340129668,1728661236699,7200.0,0.000109,3]
[340129669,1728661238787,1400.0,0.000119,4]
[340129670,1728661245572,7364.0,0.000108,5]
[340129671,1728661516317,150.0,0.0001,2]
[340129672,1728661516338,150.0,0.0001,2]
[340129673,1728661516360,150.0,0.0001,2]
[340129674,1728661516380,100.0,0.0001,2]
[340129675,1728661576549,-200.0,0.00010354,2]
[340129676,1728661576572,-250.0,0.00010427,2]
[340129677,1728661576594,-250.0,0.00010429,2]
[340129678,1728661576614,-300.0,0.00010497,2]
[340129679,1728661576636,-1000.0,0.00010498,2]
[340129680,1728661578694,-2000.0,0.00010498,2]
[340129681,1728661581029,-2000.0,0.00010498,2]
[340129682,1728661582531,-2000.0,0.00010498,2]
[340129683,1728661584351,-2000.0,0.00010498,2]
[340129684,1728661585540,-2000.0,0.00010498,2]
[340129685,1728661589095,-900.0,0.00010498,2]
[340129690,1728661626619,300.0,0.000105,3]
[340129691,1728661628713,700.0,0.000106,3]
[340129692,1728661630820,1100.0,0.000107,3]
[340129693,1728661632928,1500.0,0.000108,3]
[340129694,1728661635062,1800.0,0.000109,3]
[340129695,1728661637160,300.0,0.000119,4]
[340129699,1728661831890,-818.82444517,0.00010398,2]
[340129700,1728661831902,-831.17555483,0.00010398,2]
[340129701,1728661831912,-36.81911605,0.00010497,2]
[340129702,1728661831952,-263.18088395,0.00010497,2]
[340129703,1728661831961,-1755.84864447,0.00010498,2]
[340129704,1728661831974,-509.22801043,0.00010498,2]
[340129705,1728661831985,-5122.22480104,0.00010498,2]
[340129706,1728661831999,-947.8638113,0.00010498,2]
[340129707,1728661832012,-1366.00042613,0.00010498,2]
[340129708,1728661832025,-2298.83430663,0.00010498,2]
[340129709,1728661832035,-1000.0,0.00010498,2]
[340129710,1728661832044,-29173.0,0.00010567,2]
[340129711,1728661832054,-268.87,0.00010624,2]
[340129712,1728661832066,-150.0,0.00010799,2]
[340129713,1728661832076,-262.2927,0.000108,2]
[340129714,1728661832086,-500.0,0.000108,2]
[340129715,1728661832096,-250.986,0.000108,2]
[340129716,1728661832108,-181.298,0.000108,2]
[340129717,1728661832117,-499.99,0.000108,2]
[340129718,1728661832128,-439.04,0.00010834,2]
[340129719,1728661832138,-205.22593,0.0001089,2]
[340129720,1728661832149,-161.63816997,0.000109,2]
[340129721,1728661832159,-9768.23808635,0.000109,2]
[340129722,1728661832170,-2737.95731863,0.000109,2]
[340129723,1728661832181,-3591.07735005,0.000109,2]
[340129724,1728661832193,-662.54834617,0.000109,2]
[340129725,1728661832205,-24955.4579988,0.000109,2]
[340129726,1728661832214,-6548.2728,0.000109,2]
[340129727,1728661832224,-497.2572,0.000109,2]
[340129728,1728661832234,-2357.80715962,0.000109,2]
[340129729,1728661832244,-3595.8058,0.000109,2]
[340129730,1728661832253,-185.67537035,0.000109,2]
[340129731,1728661832264,-2500.0,0.000109,2]
[340129732,1728661832275,-222.72667164,0.000109,2]
[340129733,1728661832285,-1657.72753221,0.000109,2]
[340129734,1728661832295,-181.87747034,0.000109,2]
[340129735,1728661832305,-4241.94818881,0.000109,2]
[340129736,1728661832314,-157.73,0.00010959,2]
[340129737,1728661832325,-1425.88,0.00010959,2]
[340129738,1728661832336,-261.5,0.00010959,2]
[340129739,1728661832346,-7285.03,0.00010959,2]
[340129740,1728661832355,-161.65,0.00010959,2]
[340129741,1728661832365,-250.0,0.00010959,2]
[340129742,1728661832376,-389.324251,0.00010973,2]
[340129743,1728661832385,-225.35451009,0.00010999,2]
[340129744,1728661832395,-4836.34990193,0.00010999,2]
[340129745,1728661832407,-4374.36890064,0.00010999,2]
[340129746,1728661832417,-1531.24895539,0.00011,2]
[340129747,1728661832428,-20924.53590503,0.00011,2]
[340129748,1728661832444,-17804.33994674,0.00011,2]
[340129749,1728661832456,-664.01850056,0.00011,2]
[340129750,1728661832467,-500.0,0.00011,2]
[340129751,1728661832502,-4390.21581886,0.00011,2]
[340129752,1728661832514,-1571.8,0.00011,2]
[340129753,1728661832526,-711.6,0.00011,2]
[340129754,1728661832537,-679.71,0.00011,2]
[340129755,1728661832565,-8959.73565567,0.00011,2]
[340129756,1728661838033,-799.11935034,0.00011,2]
[340129757,1728661838044,-7438.13842549,0.00011,2]
[340129758,1728661838056,-1233.64916876,0.00011,2]
[340129759,1728661838067,-31499.12898451,0.00011,2]
[340129760,1728661838102,-6896.70624383,0.00011,2]
[340129761,1728661838114,-19099.21,0.00011,2]
[340129762,1728661838125,-6057.23386798,0.00011,2]
[340129763,1728661838137,-13271.56862149,0.00011,2]
[340129764,1728661838148,-24654.16122351,0.00011,2]
[340129765,1728661838159,-22243.24876,0.00011,2]
[340129766,1728661838214,-973886.58267189,0.00011,2]
[340129767,1728661838225,-1922.01009,0.00011,2]
[340129768,1728661838240,-4007.00402068,0.00011,2]
[340129769,1728661838252,-3353.94450525,0.00011,2]
[340129770,1728661838265,-667.24633407,0.00011,2]
[340129771,1728661838277,-2146.17360397,0.00011,2]
[340129772,1728661838296,-5974.7917284,0.00011,2]
[340129773,1728661838308,-3843.61361225,0.00011,2]
[340129774,1728661838319,-1720.75393469,0.00011,2]
[340129775,1728661838332,-4498.0,0.00011,2]
[340129776,1728661838413,-24003.67265126,0.00011,2]
[340129777,1728661838434,-838.63282662,0.00011,2]
[340129781,1728661838606,-6308.08356127,0.00011,2]
[340129782,1728661838617,-800.67916805,0.00011,2]
[340129783,1728661838628,-705.09885338,0.00011,2]
[340129784,1728661838639,-11422.62293034,0.00011,2]
[340129785,1728661838650,-44927.75358361,0.00011,2]
[340129786,1728661838661,-1152.06794487,0.00011,2]
[340129787,1728661838672,-12796.0661975,0.00011,2]
[340129788,1728661838682,-523.16180576,0.00011,2]
[340129789,1728661838693,-135717.78159402,0.00011,2]
[340129790,1728661838703,-24977.3687205,0.00011,2]
[340129791,1728661838714,-459.01463883,0.00011,2]
[340129792,1728661838725,-632.6228459,0.00011,2]
[340129793,1728661838736,-562.98582958,0.00011,2]
[340129794,1728661838747,-794.86802,0.00011,2]
[340129795,1728661839914,-1562.78016588,0.00011,2]
[340129796,1728661839926,-406.289999,0.00011,2]
[340129797,1728661839974,-300.060222,0.00011,2]
[340129798,1728661840033,-316.37510169,0.00011,2]
[340129799,1728661840194,-20.86585297,0.00011,2]
[340129800,1728661840214,-295.69770592,0.00011,2]
[340129801,1728661840275,-737.31018335,0.00011,2]
[340129802,1728661840287,-1403.21058357,0.00011,2]
[340129803,1728661840298,-4591.35776739,0.00011,2]
[340129810,1728661842979,-1869.859254,0.00011,2]
[340129811,1728661843145,-6949.9344931,0.00011,2]
[340129814,1728661843499,-32908.65624028,0.00011,2]
[340129815,1728661843509,-62053.80518589,0.00011,2]
[340129816,1728661843521,-246298.71950051,0.00011,2]
[340129839,1728661846084,-6223.57488,0.00011,2]
[340129840,1728661846299,-5865.4733326,0.00011,2]
[340129841,1728661846408,-1264.7968584,0.00011,2]
[340129842,1728661846420,-268.66999504,0.00011,2]
[340129844,1728661863388,286.19724393,9.602e-05,2]
[340129845,1728661863419,108.93275607,9.602e-05,2]
[340129851,1728662420334,406.09,8.455e-05,2]
[340129855,1728662586610,-250.0,0.00010263,2]
[340129856,1728662591154,-584.05748729,0.00010371,2]
[340129857,1728662591828,-500.0,0.00010371,2]
[340129858,1728662824714,150.0,0.0001013,2]
[340129859,1728662824736,150.0,0.0001013,2]
[340129860,1728662824757,200.0,0.0001013,2]
[340129865,1728662947051,30.12,0.00010195,2]
[340129866,1728662947070,150.0,0.00010195,2]
[340129867,1728662947091,69.88,0.00010195,2]